Cogmind - Beta 16.1 @@@ ROGUE MODE // 2026.02.25 @ 19:44:25 Player: Anting Result: Self-destructed Performance ------------- Evolutions (4) 2000 Regions Visited (20) 4000 Robots Destroyed (106) 530 Value Destroyed (2502) 2502 Prototype IDs (56) 1120 Alien Tech Used (0) 0 Bonus (1845) 1845 TOTAL SCORE: 11997 Bonus ------- Follower Combat Kills 245 Hunted by Unchained 500 Entered Garrisons 200 Aligned with FarCom 300 Met Data Miner 300 Acquired ECA 300 Cogmind --------- Core Integrity 370/850 Matter 206/300 Energy 100/100 System Corruption 4% Temperature Cool (0) Movement Flying (114) Ox1 Location -6/Factory Parts ------- > --- POWER (1) -------- (None) > --- PROPULSION (5) --- Nuclear Pulse Thruster Cooled Cesium-ion Thruster > --- UTILITY (7) ------ Medium Storage Unit Transport Network Coupler Advanced Melee Analysis Suite Hacking Suite Advanced System Shield > --- WEAPON (2) ------- Vibroblade > --- INVENTORY (10) --- Light Neutrino Core Experimental Propulsion Shielding Improved Hacking Suite Authchip [Propulsion] Improved Trap Extractor (6/6 Dirty Bomb) Advanced Trap Extractor (8/8 Blade) Cooled Plasma Cannon Hypervelocity Gauss Cannon Vibroblade Peak State ------------ > --- POWER ------------ Light Neutrino Core > --- PROPULSION ------- Cooled Cesium-ion Thruster Cooled Cesium-ion Thruster Cooled Cesium-ion Thruster Cooled Cesium-ion Thruster Cooled Cesium-ion Thruster > --- UTILITY ---------- Medium Storage Unit Transport Network Coupler Advanced Melee Analysis Suite Improved Light Armor Plating Hacking Suite Hacking Suite Advanced System Shield > --- WEAPON ----------- Improved Datajack Vibroblade > --- INVENTORY -------- Experimental Propulsion Shielding Improved Hacking Suite Improved Trap Extractor Advanced Trap Extractor Cooled Plasma Cannon Hypervelocity Gauss Cannon Long-range Missile Launcher Vibroblade [Rating: 74] Favorites ----------- Power Makeshift Power Source Engine Makeshift Power Source Power Core Light Neutrino Core Propulsion Cooled Cesium-ion Thruster Treads Light Treads Leg Aluminum Leg Flight Unit Cooled Cesium-ion Thruster Utility Medium Storage Unit Device ECM Suite Storage Medium Storage Unit Processor Advanced Melee Analysis Suite Hackware Hacking Suite Protection Improved Light Armor Plating Weapon Improved Datajack Energy Gun Medium Laser Energy Cannon Cooled Particle Cannon Ballistic Gun Light Assault Rifle Ballistic Cannon Hypervelocity Gauss Cannon Launcher Long-range Missile Launcher Impact Weapon Heavy Hammer Slashing Weapon Vibroblade Special Melee Weapon Improved Datajack Build | -11 -10 -10 -9 -9 -9 -8 -8 -8 -8 -8 -7 -7 -7 -7 -7 -7 -6 -6 -6 -6 ------- Run | Yrd Mat Min Mat Min Exi Min Mat Gar Mat Sto Fac Was Fac Low Low Dat Pro Fac Was Fac Slots Evolved 8 | . . . 2 . . . 2 . . . 2 . . . . . . 2 . . Power . | . . . . . . . . . . . . . . . . . . . . . Propulsion 3 | . . . 1 . . . 1 . . . . . . . . . . 1 . . Utility 5 | . . . 1 . . . 1 . . . 2 . . . . . . 1 . . Weapon . | . . . . . . . . . . . . . . . . . . . . . Parts Attached 84 | 4 5 . 14 6 . . 7 3 . 6 4 1 11 2 . . 1 17 . 3 Power 7 | . . . 1 2 . . . . . 1 . . . 1 . . . 1 . 1 Engine 6 | . . . 1 2 . . . . . 1 . . . 1 . . . . . 1 Core 1 | . . . . . . . . . . . . . . . . . . 1 . . Reactor . | . . . . . . . . . . . . . . . . . . . . . Propulsion 28 | 2 2 . 6 3 . . 2 . . 4 . . 2 . . . 1 4 . 2 Treads 7 | . 1 . 6 . . . . . . . . . . . . . . . . . Leg 3 | 2 1 . . . . . . . . . . . . . . . . . . . Wheel . | . . . . . . . . . . . . . . . . . . . . . Hover . | . . . . . . . . . . . . . . . . . . . . . Flight 18 | . . . . 3 . . 2 . . 4 . . 2 . . . 1 4 . 2 Utility 24 | . . . 4 . . . 3 2 . 1 2 . 5 . . . . 7 . . Device 6 | . . . 1 . . . 1 2 . . . . 1 . . . . 1 . . Storage 1 | . . . . . . . 1 . . . . . . . . . . . . . Processor 6 | . . . . . . . 1 . . . 1 . 2 . . . . 2 . . Hackware 7 | . . . . . . . . . . . 1 . 2 . . . . 4 . . Protection 4 | . . . 3 . . . . . . 1 . . . . . . . . . . Artifact . | . . . . . . . . . . . . . . . . . . . . . Weapon 25 | 2 3 . 3 1 . . 2 1 . . 2 1 4 1 . . . 5 . . Energy Gun 2 | 2 . . . . . . . . . . . . . . . . . . . . Energy Cannon 3 | . . . . . . . . . . . . 1 2 . . . . . . . Ballistic Gun 5 | . 2 . 2 1 . . . . . . . . . . . . . . . . Ballistic Cannon 2 | . . . . . . . . . . . . . 1 . . . . 1 . . Launcher 3 | . . . . . . . . 1 . . . . . . . . . 2 . . Special Weapon . | . . . . . . . . . . . . . . . . . . . . . Impact Weapon 2 | . . . 1 . . . . . . . 1 . . . . . . . . . Slashing Weapon 5 | . . . . . . . 1 . . . 1 . 1 1 . . . 1 . . Piercing Weapon . | . . . . . . . . . . . . . . . . . . . . . Special Melee Weapon 3 | . 1 . . . . . 1 . . . . . . . . . . 1 . . Unidentified Prototypes 9 | . . . . 1 . . . . . 1 1 1 4 . . . . 1 . . Parts Lost 13 | . 1 . . . . . . . . . . . . . . . . 1 . 11 Power 2 | . . . . . . . . . . . . . . . . . . . . 2 Propulsion 7 | . 1 . . . . . . . . . . . . . . . . 1 . 5 Utility 2 | . . . . . . . . . . . . . . . . . . . . 2 Weapon 2 | . . . . . . . . . . . . . . . . . . . . 2 Highest Loss Streak 7 | . 1 . . . . . . . . . . . . . . . . 1 . 7 To Critical Strikes . | . . . . . . . . . . . . . . . . . . . . . Average Backups 9 | 2 5 5 4 4 3 4 8 9 9 9 9 10 9 10 10 10 10 9 10 9 Power . | . 1 1 1 . . . 1 . . . 1 1 1 1 1 1 1 . 1 1 Propulsion 1 | 1 2 2 1 . . . . 1 1 2 3 3 2 1 1 1 1 . 1 . Utility 3 | . 1 1 1 2 2 3 5 6 7 5 4 4 3 3 3 3 3 3 4 4 Weapon 2 | . . . . . 1 1 1 1 1 1 1 1 3 5 5 5 5 4 4 3 Tool/Special . | . . . . . . . . . . . . . . . . . . . . . Unused Backups 25 | . 3 . . . . . 4 2 1 3 . 1 5 . . . . 2 . 4 Power 10 | . 1 . . . . . 3 2 1 1 . 1 1 . . . . . . . Propulsion 6 | . . . . . . . . . . 2 . . 3 . . . . . . 1 Utility 8 | . 1 . . . . . 1 . . . . . 1 . . . . 2 . 3 Weapon 1 | . 1 . . . . . . . . . . . . . . . . . . . Tool/Special . | . . . . . . . . . . . . . . . . . . . . . Average Slot Usage (%) 95 | . 56 57 65 78 100 100 94 100 100 100 95 100 99 100 100 100 100 99 100 96 Engine 6 | . . . . 1 11 11 9 9 9 9 7 7 7 7 7 7 7 5 6 5 Treads 2 | . 9 14 31 27 . . . . . . . . . . . . . . . . Flight 29 | . . . . 4 33 33 31 36 36 36 30 30 30 30 30 30 30 32 33 31 Device 6 | . . . 6 11 11 11 14 9 15 11 7 7 6 . . . . 5 6 6 Storage 6 | . . . . . . . 7 9 9 9 7 7 7 7 7 7 7 6 6 6 Processor 9 | . . . . . . . 8 9 9 9 10 15 9 7 7 7 7 11 13 13 Hackware 9 | . . . . . . . . . . . 7 7 14 23 23 23 23 14 13 13 Protection 6 | . . . 12 22 22 22 5 8 2 6 7 7 4 6 7 7 6 5 6 5 Ballistic Gun 1 | . 14 28 7 . . . . . . . . . . . . . . . . . Slashing Weapon 5 | . . . . . . . 8 8 9 9 7 7 7 6 7 7 7 5 . 5 Special Melee Weapon 6 | . 1 . . . 11 11 9 9 9 9 7 7 6 7 7 7 6 5 6 5 Peak Build Rating 74 | 4 4 4 14 19 20 20 31 31 31 40 47 45 54 56 56 56 59 74 70 70 Average Rating 48 | 2 3 4 9 13 19 20 28 25 29 35 42 40 41 53 56 56 56 69 69 67 On Entrance 33 | . 4 4 4 13 19 20 20 26 26 31 40 40 41 53 56 56 56 56 70 70 Avg Prop Armor Cover (%) 13 | 24 26 27 27 22 . . . . . . . . . . . . . 1 . . Naked Turns . | . . . . . . . . . . . . . . . . . . . . . Heaviest Build 30 | 3 3 2 14 16 13 13 19 23 19 20 20 20 24 22 22 22 22 28 30 24 Greatest Support 66 | 20 20 3 66 19 19 19 25 25 26 26 20 20 22 22 22 22 32 45 30 30 Greatest Overweight (x) 4 | . . . 4 1 . . . . . . . . 1 . . . . 1 . 1 Average Overweight (x) . | . . . . . . . . . . . . . . . . . . . . . Largest Inventory Capacity 10 | 5 5 5 5 5 5 5 10 10 10 10 10 10 10 10 10 10 10 10 10 10 Average Capacity 9 | 5 5 5 5 5 5 5 9 10 10 10 10 10 10 10 10 10 10 10 10 10 Most Carried 10 | 5 5 5 5 5 4 4 10 10 10 10 10 10 10 10 10 10 10 10 10 10 Average Carried 9 | 3 5 5 4 4 3 4 8 9 9 9 9 9 9 10 10 10 10 9 10 9 Final Capacity 10 | 5 5 5 5 5 5 5 10 10 10 10 10 10 10 10 10 10 10 10 10 10 Final Carried 10 | 5 5 5 5 3 4 4 10 10 9 10 10 10 10 10 10 10 10 10 10 9 Class Distribution -------------------- 39% | Trapper-Sprinter 21% | Sprinter 21% | Hacker-Sprinter 10% | Mutant 6% | Commander-Sprinter Dominant Class ---------------- Mutant | -10/Materials Mutant | -10/Mines Mutant | -9/Materials Mutant | -9/Mines Sprinter | -9/Exiles Sprinter | -8/Mines Sprinter | -8/Materials Sprinter | -8/Garrison Scientist-Sprinter | -8/Materials Commander-Sprinter | -8/Storage Sprinter | -7/Factory Sprinter | -7/Waste Hacker-Sprinter | -7/Factory Hacker-Sprinter | -7/Lower Caves Hacker-Sprinter | -7/Lower Caves Hacker-Sprinter | -7/Data Miner Hacker-Sprinter | -6/Proximity Caves Trapper-Sprinter | -6/Factory Trapper-Sprinter | -6/Waste Trapper-Sprinter | -6/Factory Resources | -11 -10 -10 -9 -9 -9 -8 -8 -8 -8 -8 -7 -7 -7 -7 -7 -7 -6 -6 -6 -6 ----------- Run | Yrd Mat Min Mat Min Exi Min Mat Gar Mat Sto Fac Was Fac Low Low Dat Pro Fac Was Fac Matter Collected 2724 | 227 146 1 277 40 . 30 105 7 25 259 67 23 289 151 . . . 520 448 109 Remotely . | . . . . . . . . . . . . . . . . . . . . . Salvage Created 5577 | . 428 30 586 . . 47 479 43 10 389 179 . 300 246 . . . 937 1615 288 Parts 233 | . 36 3 32 . . . 30 4 2 28 10 . 17 3 . . . 38 21 9 Haulers Intercepted 13 | . . . 1 . . . 2 . . 5 2 . . . . . . 3 . . Recyclers Shooed 9 | . 1 1 4 . . . . . . . . . 1 . . . . 2 . . Parts Field Recycled . | . . . . . . . . . . . . . . . . . . . . . Retrieved Matter . | . . . . . . . . . . . . . . . . . . . . . Parts Self-Destructed 3 | . . . . . . . . . . . . . . 3 . . . . . . Prevented . | . . . . . . . . . . . . . . . . . . . . . Parts Restored . | . . . . . . . . . . . . . . . . . . . . . Kills | -11 -10 -10 -9 -9 -9 -8 -8 -8 -8 -8 -7 -7 -7 -7 -7 -7 -6 -6 -6 -6 ------- Run | Yrd Mat Min Mat Min Exi Min Mat Gar Mat Sto Fac Was Fac Low Low Dat Pro Fac Was Fac Combat Hostiles Destroyed 37 | . 11 . 8 . . . . 1 . . . . . 3 . . . 5 6 3 Melee 3 | . . . 2 . . . . . . . . . . . . . . 1 . . Guns 16 | . 10 . 6 . . . . . . . . . . . . . . . . . Cannons 8 | . . . . . . . . . . . . . . . . . . 1 6 1 AOE 9 | . . . . . . . . 1 . . . . . 3 . . . 3 . 2 Classes Destroyed 15 | . 6 1 2 . . . 1 . . . . . . 1 . . . 2 1 1 Worker 11 | . . 1 2 . . 1 4 . 1 2 . . . . . . . . . . Builder 7 | . . . . . . . 3 . . 3 . . . . . . . 1 . . Tunneler 2 | . 1 . . . . 1 . . . . . . . . . . . . . . Hauler 13 | . . . 1 . . . 2 . . 5 2 . . . . . . 3 . . Recycler 12 | . 1 . 2 . . . 3 . . . . . 3 . . . . 2 . 1 Minesweeper 1 | . . . . . . . . . . . . . . 1 . . . . . . Operator 8 | . 2 . . . . . . . . . 2 . 2 . . . . 1 . 1 Watcher 15 | . 1 . . . . . 1 . . 1 1 . 2 . . . . 6 . 3 Swarmer 12 | . 6 . . . . . . 1 . . . . . 3 . . . . . 2 Grunt 13 | . 5 . 5 . . . . . . . . . . . . . . 3 . . Brawler 1 | . . . . . . . . . . . . . . . . . . . . 1 Duelist 1 | . . . . . . . . . . . . . . . . . . 1 . . Sentry 3 | . . . 3 . . . . . . . . . . . . . . . . . Programmer 1 | . . . . . . . . . . . . . . . . . . 1 . . Compactor 6 | . . . . . . . . . . . . . . . . . . . 6 . Best Kill Streak 5 | . 5 1 4 . . 2 3 1 1 2 1 . 2 3 . . . 3 3 3 Combat Bots Only 5 | . 5 . 3 . . . . 1 . . . . . 3 . . . 3 3 3 Max Kills in Single Turn 2 | . 2 1 1 . . 1 1 1 1 1 1 . 1 2 . . . 1 1 2 Gunslinging . | . . . . . . . . . . . . . . . . . . . . . Exploded 2 | . . . . . . . . 1 . . . . . 2 . . . 1 . 2 Melee 1 | . . . 1 . . . . . . . . . . . . . . 1 . . Uniques/NPCs Destroyed . | . . . . . . . . . . . . . . . . . . . . . Combat | -11 -10 -10 -9 -9 -9 -8 -8 -8 -8 -8 -7 -7 -7 -7 -7 -7 -6 -6 -6 -6 -------- Run | Yrd Mat Min Mat Min Exi Min Mat Gar Mat Sto Fac Was Fac Low Low Dat Pro Fac Was Fac Hostile Shots Fired 297 | . 57 . 89 . . . 3 7 . . 10 . 15 11 . . 3 28 . 74 Missed 125 | . 17 . 29 . . . 1 2 . . 8 . 9 6 . . 1 18 . 34 Hits 172 | . 40 . 60 . . . 2 5 . . 2 . 6 5 . . 2 10 . 40 Melee 2 | . . . . . . . . . . . . . . . . . . 2 . . Projectile 170 | . 40 . 60 . . . 2 5 . . 2 . 6 5 . . 2 8 . 40 AOE 5 | . . . . . . . . . . . . . . . . . . 3 . 2 Critical Strikes 11 | . . . 2 . . . . . . . . . . . . . . . . 9 Damage Taken 3054 | . 387 3 810 . . . 57 69 . 71 16 . 68 65 . . 54 230 . 1224 Core 787 | . 58 . 99 . . . . 22 . 36 11 . 15 33 . . 33 71 . 409 Absorbed by Shields . | . . . . . . . . . . . . . . . . . . . . . Redirected to Shielding 9 | . . . . . . . . . . 9 . . . . . . . . . . Regen/Repaired (Parts) 293 | . . . . . . . 23 . . . . . . . . . . 270 . . Core Remaining (%) 85 | 100 . 76 . . . 75 . . . 89 . . . . . . 86 . . . Volleys Fired 182 | . 63 2 29 . . . . 2 . . . . 9 2 . . 2 13 51 9 Largest 2 | . 2 1 2 . . . . 1 . . . . 1 1 . . 1 1 1 1 Hottest 90 | . 90 20 46 . . . . 36 . . . . 90 36 . . 35 51 51 51 Shots Fired 256 | . 125 2 41 . . . . 2 . . . . 9 2 . . 2 13 51 9 Gun 168 | . 125 2 41 . . . . . . . . . . . . . . . . . Cannon 75 | . . . . . . . . . . . . . 9 . . . 2 10 51 3 Launcher 13 | . . . . . . . . 2 . . . . . 2 . . . 3 . 6 Special . | . . . . . . . . . . . . . . . . . . . . . Kinetic 203 | . 92 2 41 . . . . . . . . . 4 . . . . 10 51 3 Thermal 40 | . 33 . . . . . . . . . . . 5 . . . 2 . . . Explosive 13 | . . . . . . . . 2 . . . . . 2 . . . 3 . 6 Electromagnetic . | . . . . . . . . . . . . . . . . . . . . . Robot Hit Streak 16 | . 13 2 10 . . . . 1 . . . . 2 1 . . . 4 16 10 Robot Miss Streak 7 | . 7 . 3 . . . . . . . . . . 1 . . . 2 1 2 Penetration Max 1 | . . . . . . . . . . . . . . . . . . 1 . . Secondary Targets 4 | . 3 . 1 . . . . . . . . . . . . . . . . . Max Gunslinging Chain 1 | . 1 . 1 . . . . . . . . . . . . . . . . . Shots Hit Robots 285 | . 76 2 35 . 4 2 13 4 1 22 12 . 14 6 . . . 34 44 16 Core Hits 113 | . 29 2 14 . . . 9 2 . 9 5 . 5 3 . . . 17 9 9 Critical Kills 7 | . . . . . . . 1 . . . . . . . . . . . 5 1 Critical Parts Destroyed 4 | . . . 2 . . . . . . . . . . . . . . 2 . . Critical Strikes 35 | . 1 . 2 . . . 1 . . 2 3 . . . . . . 3 21 2 Burn 1 | . 1 . . . . . . . . . . . . . . . . . . . Destroy 24 | . . . . . . . . . . . . . . . . . . 2 21 1 Smash 3 | . . . 2 . . . 1 . . . . . . . . . . . . . Sever 7 | . . . . . . . . . . 2 3 . . . . . . 1 . 1 Melee Attacks 310 | . . . 13 . 4 2 27 30 7 35 23 . 54 9 2 . 6 72 . 26 Impact 18 | . . . 13 . . 2 3 . . . . . . . . . . . . . Slashing 283 | . . . . . . . 24 30 7 35 23 . 52 9 2 . 6 70 . 25 Piercing . | . . . . . . . . . . . . . . . . . . . . . Sneak Attacks 55 | . . . 3 . 4 2 13 . 1 11 2 . 6 1 . . . 10 . 2 Combat Hostiles 2 | . . . . . . . . . . . . . . . . . . 2 . . Follow-up Attacks . | . . . . . . . . . . . . . . . . . . . . . Damage Inflicted 10790 | . 685 23 789 . . 141 866 256 68 1196 602 . 715 755 . . . 2683 718 1293 Guns 1126 | . 685 16 425 . . . . . . . . . . . . . . . . . Cannons 913 | . . . . . . . . . . . . . 27 . . . . 134 718 34 Explosions 1332 | . . . . . . . . 56 . . . . . 274 . . . 506 . 496 Melee 7405 | . . . 357 . . 141 866 200 68 1196 602 . 688 481 . . . 2043 . 763 Ramming 14 | . . 7 7 . . . . . . . . . . . . . . . . . Kinetic 1748 | . 421 16 425 . . . . . . . . . . . . . . 134 718 34 Thermal 291 | . 264 . . . . . . . . . . . 27 . . . . . . . Explosive 1332 | . . . . . . . . 56 . . . . . 274 . . . 506 . 496 Electromagnetic . | . . . . . . . . . . . . . . . . . . . . . Impact 611 | . . . 357 . . 141 113 . . . . . . . . . . . . . Slashing 6794 | . . . . . . . 753 200 68 1196 602 . 688 481 . . . 2043 . 763 Piercing . | . . . . . . . . . . . . . . . . . . . . . Highest Corruption 4 | . . 2 . . . . . . . . . . . . . . . . . 4 Average Corruption 2 | . . 2 . . . . . . . . . . . . . . . . . 2 Corruption Purged . | . . . . . . . . . . . . . . . . . . . . . Corruption Blocked . | . . . . . . . . . . . . . . . . . . . . . Effects 3 | . . 1 . . . . . . . . . . . . . . . . . 2 Matter Fused 1 | . . . . . . . . . . . . . . . . . . . . 1 Data Loss (minor) 1 | . . . . . . . . . . . . . . . . . . . . 1 Data Loss (major) 1 | . . 1 . . . . . . . . . . . . . . . . . . Overload Shots 3 | . . . . . . . . . . . . . 3 . . . . . . . Overflow Damage 1810 | . . . 135 . . 61 138 60 28 99 21 . 156 293 . . . 485 . 334 Projectiles 5 | . . . . . . . . . . . . . . . . . . 5 . . Explosions 59 | . . . . . . . . . . . . . . 57 . . . 2 . . Melee 1746 | . . . 135 . . 61 138 60 28 99 21 . 156 236 . . . 478 . 334 Knockbacks 6 | . . 1 2 . . 1 . . . . . . . . . . . 2 . . Impact 4 | . . 1 2 . . 1 . . . . . . . . . . . . . . Kinetic 2 | . . . . . . . . . . . . . . . . . . 2 . . Secondary . | . . . . . . . . . . . . . . . . . . . . . Self-Inflicted Damage 49 | . . 3 . . . . . . . . . . . . . . . . . 46 Shots 1 | . . . . . . . . . . . . . . . . . . . . 1 Rammed 10 | . . 2 8 . . . . . . . . . . . . . . . . . Targets Rammed 11 | . . 2 9 . . . . . . . . . . . . . . . . . Kicked . | . . . . . . . . . . . . . . . . . . . . . Crushed 1 | . . . 1 . . . . . . . . . . . . . . . . . Highest Temperature 210 | . 210 . 18 . . . . 9 . . . . 40 . . . 152 200 20 103 Average Temperature 26 | . 68 . 9 . . . . 4 . . . . 22 . . . 76 18 16 40 Received Heat Transfer 754 | . 114 . 333 . . . . 9 . . 6 . 30 . . . 12 6 . 244 Siege Activations . | . . . . . . . . . . . . . . . . . . . . . Martial Activations . | . . . . . . . . . . . . . . . . . . . . . Shielding Activations . | . . . . . . . . . . . . . . . . . . . . . Robots Disrupted . | . . . . . . . . . . . . . . . . . . . . . Combat Hostiles . | . . . . . . . . . . . . . . . . . . . . . Robots Corrupted 2 | . . . 1 . . 1 . . . . . . . . . . . . . . Combat Hostiles . | . . . . . . . . . . . . . . . . . . . . . Parts Fried 7 | . . . 4 . . 3 . . . . . . . . . . . . . . Impact Corruptions 8 | . . . 5 . . 2 1 . . . . . . . . . . . . . Robots Melted 1 | . 1 . . . . . . . . . . . . . . . . . . . Combat Hostiles 1 | . 1 . . . . . . . . . . . . . . . . . . . Parts Melted 3 | . 3 . . . . . . . . . . . . . . . . . . . Heat Transferred 817 | . 780 . . . . . . . . . . . 37 . . . . . . . Parts Sabotaged . | . . . . . . . . . . . . . . . . . . . . . Parts Stolen . | . . . . . . . . . . . . . . . . . . . . . Parts Stripped . | . . . . . . . . . . . . . . . . . . . . . Power Chain Reactions . | . . . . . . . . . . . . . . . . . . . . . Alert | -11 -10 -10 -9 -9 -9 -8 -8 -8 -8 -8 -7 -7 -7 -7 -7 -7 -6 -6 -6 -6 ------- Run | Yrd Mat Min Mat Min Exi Min Mat Gar Mat Sto Fac Was Fac Low Low Dat Pro Fac Was Fac Maximum Alert Level 2 | . . . . . . . . 2 1 1 . . . . . . . . . . Low Security (%) 88 | 100 100 100 100 100 . 100 100 31 . 55 100 100 100 . . . . 100 100 100 Level 1 10 | . . . . . . . . 66 100 44 . . . . . . . . . . Level 2 . | . . . . . . . . 1 . . . . . . . . . . . . Level 3 . | . . . . . . . . . . . . . . . . . . . . . Level 4 . | . . . . . . . . . . . . . . . . . . . . . Level 5 . | . . . . . . . . . . . . . . . . . . . . . High Security . | . . . . . . . . . . . . . . . . . . . . . Max Security . | . . . . . . . . . . . . . . . . . . . . . Peak Influence 489 | . 196 73 176 58 . 5 49 489 239 288 147 20 37 . . . . 98 . 69 Initial 237 | . . 73 10 58 . . . 2 237 93 120 20 . . . . . 2 . . Average 69 | . 117 51 112 24 . . 11 277 228 195 101 7 6 . . . . 21 . 14 Influence Increases 3348 | . 416 5 385 . . 10 186 487 26 554 99 . 244 115 . . 15 571 . 235 Destroy 0b10 Robot/C 760 | . 220 . 160 . . . . 20 . 140 . . . 60 . . . 100 . 60 Destroy 0b10 Robot/NC 360 | . 25 5 25 . . 10 65 5 5 55 25 . 35 15 . . . 65 . 25 Destroy Leader 176 | . 42 . 32 . . . 6 . . 32 6 . 4 10 . . . 38 . 6 Allied During Kill 137 | . . . . . . . . . . 137 . . . . . . . . . . Trap Triggered on 0b10 60 | . . . . . . . . . . 30 . . 30 . . . . . . . Successful Hack 326 | . 8 . . . . . 27 . . 21 42 . 45 . . . . 118 . 65 Select Force Hacks 60 | . 30 . 30 . . . . . . . . . . . . . . . . . Disable Machine 180 | . . . . . . . 15 90 . 60 . . 15 . . . . . . . Anti-Garrison Action 200 | . . . . . . . . 200 . . . . . . . . . . . . Destroy Structure 219 | . 1 . 3 . . . 13 37 6 4 11 . 40 . . . . 70 . 34 Partial Spotted 375 | . 15 . 15 . . . 30 45 15 15 15 . 75 . . . . 105 . 45 Lose Combat Pursuer 495 | . 75 . 120 . . . 30 90 . 60 . . . 30 . . 15 75 . . Influence Decreases 3348 | . 226 167 262 151 . 10 182 2 292 512 305 59 242 67 50 . 10 576 . 235 Entered New Map 811 | . . 117 18 93 . . . 2 252 130 145 39 . 2 10 . . 3 . . Time Decay 2445 | . 216 50 244 58 . 10 182 . 40 362 160 20 242 65 40 . 10 545 . 201 Lost Part 44 | . 10 . . . . . . . . . . . . . . . . 10 . 24 Lost Ally 48 | . . . . . . . . . . 20 . . . . . . . 18 . 10 Squads Dispatched 38 | . 5 . 2 . . . . . . 1 2 . 4 . . . . 17 . 7 Investigation 12 | . 3 . 1 . . . . . . 1 . . . . . . . 4 . 3 Extermination 17 | . . . . . . . . . . . 1 . 3 . . . . 10 . 3 Reinforcement 9 | . 2 . 1 . . . . . . . 1 . 1 . . . . 3 . 1 Assault . | . . . . . . . . . . . . . . . . . . . . . Garrison . | . . . . . . . . . . . . . . . . . . . . . Intercept . | . . . . . . . . . . . . . . . . . . . . . Searches Triggered . | . . . . . . . . . . . . . . . . . . . . . Unchained Authorized 1 | . . . . . . . . . . . . . . . . . . . . 1 Construction Impeded 2 | . . . . . . . . . . . . . 1 . . . . . . 1 Haulers Reinforced . | . . . . . . . . . . . . . . . . . . . . . Active Scanning Responses . | . . . . . . . . . . . . . . . . . . . . . Cargo Convoy Interrupts 1 | . . . . . . . . . . . . . 1 . . . . . . . Stealth | -11 -10 -10 -9 -9 -9 -8 -8 -8 -8 -8 -7 -7 -7 -7 -7 -7 -6 -6 -6 -6 --------- Run | Yrd Mat Min Mat Min Exi Min Mat Gar Mat Sto Fac Was Fac Low Low Dat Pro Fac Was Fac Distress Signals 9 | . 1 . 4 . . . . . . 1 1 . . . . . . 2 . . Communications Jammed . | . . . . . . . . . . . . . . . . . . . . . Distress Signals . | . . . . . . . . . . . . . . . . . . . . . Times Spotted 183 | . 30 . 33 . . . 3 4 . 14 10 . 17 5 . . 4 37 7 19 Peak Tracking Total 10 | . 8 . 10 . . . 3 6 . 3 3 . 4 3 . . 5 8 5 6 Tactical Retreats 41 | . 3 . 5 . . . 1 2 . 3 1 . 6 2 . . 2 14 1 1 ECM-based Alert Blocks 43 | . . . . . . . . . . 2 1 . 13 . . . 4 22 . 1 Traps | -11 -10 -10 -9 -9 -9 -8 -8 -8 -8 -8 -7 -7 -7 -7 -7 -7 -6 -6 -6 -6 ------- Run | Yrd Mat Min Mat Min Exi Min Mat Gar Mat Sto Fac Was Fac Low Low Dat Pro Fac Was Fac Traps Triggered 13 | . 2 . 1 . . . . 1 . 1 2 . 2 . . . . 1 . 3 Indirectly . | . . . . . . . . . . . . . . . . . . . . . Trap Hack Attempts 70 | . . . . . . . . . . 27 . . 18 . . . . 25 . . Triggered . | . . . . . . . . . . . . . . . . . . . . . Disarmed . | . . . . . . . . . . . . . . . . . . . . . Reprogrammed 12 | . . . . . . . . . . 4 . . 4 . . . . 4 . . Reused 6 | . . . . . . . . . . 3 . . 3 . . . . . . . Traps Extracted 12 | . . . . . . . . . . 4 . . 4 . . . . 4 . . Installed 7 | . . . . . . . . . . 4 . . 3 . . . . . . . Triggered 6 | . . . . . . . . . . 3 . . 3 . . . . . . . Most Traps Carried 14 | . . . . . . . . 4 4 5 4 4 8 10 10 10 10 14 14 14 Objects Rigged 8 | . . . . . . . 5 1 . 2 . . . . . . . . . . Exploded 5 | . . . . . . . 3 2 . . . . . . . . . . . . Time Bombs Activated 1 | . . . . . . . . . 1 . . . . . . . . . . . Exploded 1 | . . . . . . . . . 1 . . . . . . . . . . . Machines | -11 -10 -10 -9 -9 -9 -8 -8 -8 -8 -8 -7 -7 -7 -7 -7 -7 -6 -6 -6 -6 ---------- Run | Yrd Mat Min Mat Min Exi Min Mat Gar Mat Sto Fac Was Fac Low Low Dat Pro Fac Was Fac Machines Disabled 14 | . . . . . . . 1 8 . 4 . . 1 . . . . . . . Max in Single Turn 1 | . . . . . . . 1 1 . 1 . . 1 . . . . . . . Garrison Access 6 | . . . . . . . . . . 1 . . 2 . . . . 2 . 1 Garrison Relay 2 | . . . . . . . . 2 . . . . . . . . . . . . Machines Repaired . | . . . . . . . . . . . . . . . . . . . . . Machines Dismantled . | . . . . . . . . . . . . . . . . . . . . . Machines Sabotaged . | . . . . . . . . . . . . . . . . . . . . . Overloaded Fab Kills . | . . . . . . . . . . . . . . . . . . . . . Hacking | -11 -10 -10 -9 -9 -9 -8 -8 -8 -8 -8 -7 -7 -7 -7 -7 -7 -6 -6 -6 -6 --------- Run | Yrd Mat Min Mat Min Exi Min Mat Gar Mat Sto Fac Was Fac Low Low Dat Pro Fac Was Fac Machines Accessed 95 | . 5 . 5 . 2 . 8 2 2 7 5 . 14 . . 4 . 26 . 15 Terminals 51 | . 4 . 4 . . . 5 2 1 6 4 . 8 . . . . 9 . 8 Fabricators 11 | . . . . . . . . . . . . . 3 . . . . 6 . 2 Repair Stations 5 | . . . . . . . 1 . . . . . . . . . . 4 . . Recycling Units 6 | . 1 . 1 . . . . . . . . . . . . . . 3 . 1 Scanalyzers 7 | . . . . . . . 1 . 1 . 1 . . . . . . 2 . 2 Garrison Access 9 | . . . . . . . 1 . . 1 . . 3 . . . . 2 . 2 Total Hacks 255 | . 10 . 8 . 2 . 20 6 9 12 10 . 27 . . 28 . 91 . 32 Successful 154 | . 6 . 3 . 2 . 13 . 6 7 7 . 9 . . 28 . 57 . 16 Failed 101 | . 4 . 5 . . . 7 6 3 5 3 . 18 . . . . 34 . 16 Catastrophic 16 | . 1 . 2 . . . . 2 . 1 . . 4 . . . . 6 . . Database Lockouts . | . . . . . . . . . . . . . . . . . . . . . Manual 100 | . 10 . 8 . 1 . 8 . 2 7 4 . 19 . . . . 26 . 15 Terminals 108 | . 9 . 6 . . . 10 6 4 10 8 . 18 . . . . 22 . 15 Fabricators 36 | . . . . . . . . . . . . . 5 . . . . 23 . 8 Repair Stations 28 | . . . . . . . 4 . . . . . . . . . . 24 . . Recycling Units 11 | . 1 . 2 . . . . . . . . . . . . . . 7 . 1 Scanalyzers 27 | . . . . . . . 5 . 5 . 2 . . . . . . 11 . 4 Garrison Access 15 | . . . . . . . 1 . . 2 . . 4 . . . . 4 . 4 Terminal Hacks 55 | . 1 . . . 2 . 2 . 1 5 2 . 4 . . 28 . 7 . 3 Record 12 | . . . . . 1 . . . . . . . . . . 11 . . . . Part Schematic 11 | . . . . . . . . . . . . . . . . 10 . 1 . . Robot Schematic 4 | . . . . . . . . . . . . . . . . 4 . . . . Prototype ID Bank 3 | . . . . . . . . . . . . . . . . 3 . . . . Open Door 2 | . . . . . . . . . . 2 . . . . . . . . . . Branch Access Points 3 | . . . . . . . . . . . . . 1 . . . . 1 . 1 Terminal Index 2 | . 1 . . . . . . . . . . . 1 . . . . . . . Scanalyzer Index 1 | . . . . . . . . . . . . . . . . . . 1 . . Alert Level 3 | . . . . . . . . . 1 . 1 . . . . . . 1 . . Locate Traps 4 | . . . . . . . 1 . . 1 . . 1 . . . . . . 1 Hauler Manifests 8 | . . . . . . . 1 . . 1 1 . 1 . . . . 3 . 1 Zone Layout 1 | . . . . . . . . . . 1 . . . . . . . . . . Proto ID Catalog 1 | . . . . . 1 . . . . . . . . . . . . . . . Fabricator Hacks 13 | . . . . . . . . . . . . . 1 . . . . 10 . 2 Network Status 3 | . . . . . . . . . . . . . 1 . . . . 1 . 1 Load Schematic 7 | . . . . . . . . . . . . . . . . . . 6 . 1 Build 3 | . . . . . . . . . . . . . . . . . . 3 . . Repair Station Hacks 19 | . . . . . . . 3 . . . . . . . . . . 16 . . Scan Component 10 | . . . . . . . 2 . . . . . . . . . . 8 . . Repair 9 | . . . . . . . 1 . . . . . . . . . . 8 . . Recycling Unit Hacks 2 | . . . . . . . . . . . . . . . . . . 2 . . Retrieve Components 2 | . . . . . . . . . . . . . . . . . . 2 . . Scanalyzer 19 | . . . . . . . 2 . 4 . 2 . . . . . . 9 . 2 Insert Component 5 | . . . . . . . . . . . . . . . . . . 4 . 1 Analyze 4 | . . . . . . . . . . . . . . . . . . 4 . . Retrieve Study 10 | . . . . . . . 2 . 4 . 2 . . . . . . 1 . 1 Garrison Access Hacks 7 | . . . . . . . 1 . . 1 . . 2 . . . . 2 . 1 Unlock Access 1 | . . . . . . . 1 . . . . . . . . . . . . . Seal Access 6 | . . . . . . . . . . 1 . . 2 . . . . 2 . 1 Unauthorized Hacks 39 | . 5 . 3 . . . 5 . 1 1 3 . 2 . . . . 11 . 8 Terminals 24 | . 4 . 2 . . . 5 . 1 1 3 . 1 . . . . 3 . 4 Track 2 | . . . . . . . . . . . . . . . . . . . . 2 Assimilate 4 | . . . . . . . . . . . . . 1 . . . . 2 . 1 Botnet 3 | . . . . . . . . . . . 2 . . . . . . 1 . . Disrupt 1 | . . . . . . . . . . 1 . . . . . . . . . . Operators 2 | . . . . . . . . . . . 1 . . . . . . . . 1 Skim 12 | . 4 . 2 . . . 5 . 1 . . . . . . . . . . . Fabricators 9 | . . . . . . . . . . . . . 1 . . . . 5 . 3 Prioritize 1 | . . . . . . . . . . . . . . . . . . 1 . . Liberate 2 | . . . . . . . . . . . . . . . . . . 1 . 1 Haulers 3 | . . . . . . . . . . . . . 1 . . . . 1 . 1 Recompile 3 | . . . . . . . . . . . . . . . . . . 2 . 1 Repair Stations . | . . . . . . . . . . . . . . . . . . . . . Recycling Units 6 | . 1 . 1 . . . . . . . . . . . . . . 3 . 1 Mask 4 | . . . . . . . . . . . . . . . . . . 3 . 1 Tunnel 2 | . 1 . 1 . . . . . . . . . . . . . . . . . Scanalyzers . | . . . . . . . . . . . . . . . . . . . . . Garrison Access . | . . . . . . . . . . . . . . . . . . . . . Data Cores Recovered 4 | . . . . . . . . . . . 1 . 1 . . . . 1 . 1 Used 2 | . . . . . . . . . . . 1 . 1 . . . . . . . Hacking Detections 65 | . 4 . 4 . . . 6 2 2 4 4 . 11 . . . . 19 . 9 Full Trace Events 3 | . . . . . . . . . . . . . . . . . . 2 . 1 Feedback Events . | . . . . . . . . . . . . . . . . . . . . . Feedback Blocked . | . . . . . . . . . . . . . . . . . . . . . Robot Schematics Acquired 4 | . . . . . . . . . . . . . . . . 4 . . . . Robots Built . | . . . . . . . . . . . . . . . . . . . . . Authchips . | . . . . . . . . . . . . . . . . . . . . . Time . | . . . . . . . . . . . . . . . . . . . . . Total Robot Build Rating . | . . . . . . . . . . . . . . . . . . . . . Part Schematics Acquired 13 | . . . . . . . . . . . . . . . . 10 . 3 . . Parts Built 3 | . . . . . . . . . . . . . . . . . . 3 . . Authchips 2 | . . . . . . . . . . . . . . . . . . 2 . . Time 190 | . . . . . . . . . . . . . . . . . . 190 . . Total Part Build Rating 15 | . . . . . . . . . . . . . . . . . . 15 . . Part Studies Acquired 10 | . . . . . . . 2 . 4 . 2 . . . . . . 1 . 1 Parts Repaired 9 | . . . . . . . 1 . . . . . . . . . . 8 . . Time 442 | . . . . . . . 32 . . . . . . . . . . 410 . . Parts Recycled . | . . . . . . . . . . . . . . . . . . . . . Recycled Matter . | . . . . . . . . . . . . . . . . . . . . . Retrieved Matter . | . . . . . . . . . . . . . . . . . . . . . Retrieved Components 6 | . . . . . . . . . . . . . . . . . . 6 . . Parts Scanalyzed 3 | . . . . . . . . . . . . . . . . . . 3 . . Part Schematics Acquired 2 | . . . . . . . . . . . . . . . . . . 2 . . Parts Damaged 1 | . . . . . . . . . . . . . . . . . . 1 . . Bothacking | -11 -10 -10 -9 -9 -9 -8 -8 -8 -8 -8 -7 -7 -7 -7 -7 -7 -6 -6 -6 -6 ------------ Run | Yrd Mat Min Mat Min Exi Min Mat Gar Mat Sto Fac Was Fac Low Low Dat Pro Fac Was Fac Used RIF Installer . | . . . . . . . . . . . . . . . . . . . . . Robots Hacked 7 | . . . . . 4 . . . . . . . 1 . . . . 2 . . Non-combat 6 | . . . . . 3 . . . . . . . 1 . . . . 2 . . Combat 1 | . . . . . 1 . . . . . . . . . . . . . . . Robot Hacks Applied 7 | . . . . . 4 . . . . . . . 1 . . . . 2 . . parse_system 4 | . . . . . 4 . . . . . . . . . . . . . . . no_distress 1 | . . . . . . . . . . . . . . . . . . 1 . . find_chute 1 | . . . . . . . . . . . . . . . . . . 1 . . find_station 1 | . . . . . . . . . . . . . 1 . . . . . . . Relay Couplers Released 10 | . . . . . . . . 9 . 1 . . . . . . . . . . Machine Destruction 10 | . . . . . . . . 9 . 1 . . . . . . . . . . Fabnet Peak Effective % . | . . . . . . . . . . . . . . . . . . . . . Robots Rewired . | . . . . . . . . . . . . . . . . . . . . . Allies Hacked 3 | . . . . . . . . . . . . . . . . . . 3 . . Hacks Repelled . | . . . . . . . . . . . . . . . . . . . . . Allies | -11 -10 -10 -9 -9 -9 -8 -8 -8 -8 -8 -7 -7 -7 -7 -7 -7 -6 -6 -6 -6 -------- Run | Yrd Mat Min Mat Min Exi Min Mat Gar Mat Sto Fac Was Fac Low Low Dat Pro Fac Was Fac Total Allies 38 | . . . . . . . . . . 10 . . . . . . . 7 20 1 Largest Group 19 | . . . . . . . . . . 10 . . . . . . . 3 19 1 Highest-Rated Group 702 | . . . . . . . . . . 173 . . . . . . . 87 702 26 Highest-Rated Ally 50 | . . . . . . . . . . 29 . . . . . . . 32 50 26 Initial Warlord ECA Mod 6 | . . . . . . . . . 6 6 5 5 5 5 5 5 4 4 4 4 Total Orders 8 | . . . . . . . . . . 4 . . . . . . . 4 . . STAY 4 | . . . . . . . . . . 2 . . . . . . . 2 . . FOLLOW 4 | . . . . . . . . . . 2 . . . . . . . 2 . . Ally Attacks 56 | . . . . . . . . . . 34 . . . . . . . 8 14 . Total Damage 674 | . . . . . . . . . . 396 . . . . . . . 72 206 . Kills 7 | . . . . . . . . . . 7 . . . . . . . . . . Allies Corrupted 1 | . . . . . . . . . . . . . . . . . . 1 . . Allies Melted 1 | . . . . . . . . . . . . . . 1 . . . . . . Intel | -11 -10 -10 -9 -9 -9 -8 -8 -8 -8 -8 -7 -7 -7 -7 -7 -7 -6 -6 -6 -6 ------- Run | Yrd Mat Min Mat Min Exi Min Mat Gar Mat Sto Fac Was Fac Low Low Dat Pro Fac Was Fac Active Infowar (turns) 5883 | . . . . . . . . 55 . 175 69 . 689 26 . . 18 3564 347 940 Optics 61 | . . . . . . . . . . . . . 61 . . . . . . . T.N.C. 4990 | . . . . . . . . . . . . . 331 . . . . 3372 347 940 ECM 1793 | . . . . . . . . 55 . 175 69 . 346 26 . . 18 1026 . 78 Robot Analysis Total . | . . . . . . . . . . . . . . . . . . . . . Derelict Logs Recovered 1 | . . . . . . . . . . . . . . . 1 . . . . . Drone Launches . | . . . . . . . . . . . . . . . . . . . . . Drone Recoveries . | . . . . . . . . . . . . . . . . . . . . . Exploration | -11 -10 -10 -9 -9 -9 -8 -8 -8 -8 -8 -7 -7 -7 -7 -7 -7 -6 -6 -6 -6 ------------- Run | Yrd Mat Min Mat Min Exi Min Mat Gar Mat Sto Fac Was Fac Low Low Dat Pro Fac Was Fac Turns Passed 12313 | 38 501 112 559 161 95 95 542 1222 96 820 334 73 1358 234 162 24 163 4437 347 940 Spaces Moved 18864 | 43 590 212 444 104 289 298 864 765 139 1086 852 258 2393 508 601 91 410 5492 579 2846 Core 1284 | 35 589 212 375 73 . . . . . . . . . . . . . . . . Treads 70 | . 1 . 69 . . . . . . . . . . . . . . . . . Legs 8 | 8 . . . . . . . . . . . . . . . . . . . . Wheels . | . . . . . . . . . . . . . . . . . . . . . Hover . | . . . . . . . . . . . . . . . . . . . . . Flight 17502 | . . . . 31 289 298 864 765 139 1086 852 258 2393 508 601 91 410 5492 579 2846 Fastest Speed 5 | 50 50 50 50 30 30 30 28 28 28 26 26 26 26 26 26 26 17 5 23 23 Average Speed 27 | 63 50 50 74 46 30 30 29 28 28 26 26 26 26 26 26 26 25 23 23 23 Slowest Speed 250 | 120 160 50 250 130 30 30 30 28 28 28 26 26 96 26 26 26 26 106 23 114 Overloaded Moves 45 | . . . . . . . . . . . . . . . . . 23 22 . . Propulsion Burnouts . | . . . . . . . . . . . . . . . . . . . . . Robots Hopped 62 | . . . . . . 1 2 . . . 1 2 12 . . . . 29 . 15 Potential Cave-ins . | . . . . . . . . . . . . . . . . . . . . . Cave-ins Triggered . | . . . . . . . . . . . . . . . . . . . . . Exploration Rate (%) 56 | 4 76 45 50 24 61 63 42 50 8 80 24 97 46 72 80 70 57 76 96 64 Regions Visited 20 Branch Regions 9 Pre-discovered Areas 5 | . 1 . 1 . 1 . . . . . . . . 1 . 1 . . . . Known Exits Taken 8 | . . . . . . . 1 . 1 1 . . 1 1 1 1 1 . . . Unknown Exits Taken 7 | 1 1 1 1 1 1 1 . . . . . . . . . . . . . . Scrap Searched 12 | . . 1 . 1 . . . . . . . . . 5 4 . 1 . . . Spaces Dug 137 | . . . 2 . . . 13 6 6 4 11 . 35 4 2 . 6 42 . 6 Terrain Destroyed 229 | . . . 2 . . . 13 18 6 4 11 . 40 21 2 . 8 71 . 33 Melee 136 | . . . 2 . . . 13 6 6 4 11 . 34 4 2 . 6 42 . 6 Projectile 8 | . . . . . . . . . . . . . 6 . . . 2 . . . AOE 85 | . . . . . . . . 12 . . . . . 17 . . . 29 . 27 Terrain Rammed . | . . . . . . . . . . . . . . . . . . . . . Walls Destroyed . | . . . . . . . . . . . . . . . . . . . . . Machines Disabled . | . . . . . . . . . . . . . . . . . . . . . Actions | -11 -10 -10 -9 -9 -9 -8 -8 -8 -8 -8 -7 -7 -7 -7 -7 -7 -6 -6 -6 -6 --------- Run | Yrd Mat Min Mat Min Exi Min Mat Gar Mat Sto Fac Was Fac Low Low Dat Pro Fac Was Fac Total 25180 | 51 688 215 609 215 294 298 1115 1722 184 1577 929 261 3022 590 604 90 453 8469 740 3054 Wait 5431 | . 22 . 84 102 . . 184 899 36 389 42 . 472 64 . . 30 2828 109 170 Move 18725 | 42 589 211 443 103 288 295 860 764 138 1085 850 253 2369 507 600 90 409 5434 578 2817 Hop 60 | . . . . . . 1 2 . . . 1 2 11 . . . . 29 . 14 Pick Up 79 | 5 3 . 3 . 1 . 16 7 . 11 2 1 9 . 1 . . 15 . 5 Fast Attach 54 | 4 4 . 8 4 . . 3 . . 1 4 2 8 1 . . . 12 . 3 Attach 25 | . . . 3 2 . . 2 . . 1 2 . 3 . . . . 8 . 4 Detach 3 | . . . 2 . . . . . . . . . . . . . . 1 . . Swap 83 | . 1 . 4 . 1 . 4 12 1 7 1 . 19 6 . . 6 15 2 4 Drop 101 | . 6 . 11 4 . . 12 7 1 15 4 3 17 1 1 . . 17 . 2 Fire 182 | . 63 2 29 . . . . 2 . . . . 9 2 . . 2 13 51 9 Melee 310 | . . . 13 . 4 2 27 30 7 35 23 . 54 9 2 . 6 72 . 26 Ram 2 | . . 2 . . . . . . . . . . . . . . . . . . Kick . | . . . . . . . . . . . . . . . . . . . . . Crush 9 | . . . 9 . . . . . . . . . . . . . . . . . Escape Stasis 30 | . . . . . . . . . . . . . 30 . . . . . . . Rewire . | . . . . . . . . . . . . . . . . . . . . . Trap 86 | . . . . . . . 5 1 1 33 . . 21 . . . . 25 . . Miscellaneous . | . . . . . . . . . . . . . . . . . . . . . Route ------- -11/Scrapyard -10/Materials (discovered 5 exits: *Mat x3 / [*Min] / [*Sub]) -10/Mines -9/Materials (discovered 2 exits: *Mat / [*Min]) -9/Mines -9/Exiles -8/Mines -8/Materials -8/Garrison -8/Materials -8/Storage -7/Factory (discovered 3 exits: *Fac x2 / *Low) -7/Waste -7/Factory (discovered 4 exits: *Fac x2 / *Low x2) -7/Lower Caves -7/Lower Caves (discovered 2 exits: *Fac / *Dat) -7/Data Miner -6/Proximity Caves -6/Factory (discovered 4 exits: *Fac x2 / *Low x2) -6/Waste -6/Factory (discovered 3 exits: *Fac / *Low x2) History --------- Turn | Location | Event 3 | -11/Scrapyard | Discovered new exit (range 15) 39 | -11/Scrapyard | Entered Materials 147 | -10/Materials | Discovered new exit (range 8) 151 | -10/Materials | Discovered new exit (range 16) 235 | -10/Materials | Discovered new exit (range 10) 296 | -10/Materials | Discovered new exit (range 16) 315 | -10/Materials | Build established: Mutant 509 | -10/Materials | Discovered new exit (range 9) 540 | -10/Materials | Entered Mines 618 | -10/Mines | Discovered new exit (range 11) 652 | -10/Mines | Entered Materials 652 | -9/Materials | Evolved 2 slots: Propulsion x1, Utility x1 1142 | -9/Materials | Discovered new exit (range 4) 1208 | -9/Materials | Discovered new exit (range 8) 1211 | -9/Materials | Entered Mines 1261 | -9/Mines | Met a Derelict bent on vengeance 1329 | -9/Mines | Found DCF Scrap (14 items) 1370 | -9/Mines | Deemed a non-threat by the Exiles lab entrance 1370 | -9/Mines | Discovered new exit (range 5) 1372 | -9/Mines | Entered Exiles 1381 | -9/Exiles | Met 8R-AWN 1388 | -9/Exiles | Met EX-HEX 1401 | -9/Exiles | Met EX-DEC 1412 | -9/Exiles | Learned location of Zion (-6) 1418 | -9/Exiles | Met EX-BIN 1423 | -9/Exiles | Aligned with FarCom system 1424 | -9/Exiles | Given EX-Vault access code 1431 | -9/Exiles | Opened EX-Vault 1433 | -9/Exiles | Found PSU Rigger 1439 | -9/Exiles | Warned to stay clear of 0b10 Research branches 1464 | -9/Exiles | Discovered new exit (range 15) 1467 | -9/Exiles | Left Exiles lab with PSU Rigger 1467 | -9/Exiles | Entered Mines 1482 | -8/Mines | Found a Scrap Suit stashed away for nefarious purposes 1554 | -8/Mines | Discovered new exit (range 7) 1562 | -8/Mines | Entered Materials 1562 | -8/Materials | Evolved 2 slots: Propulsion x1, Utility x1 1637 | -8/Materials | Build established: Sprinter 1842 | -8/Materials | Repaired VTOL Module+ 2104 | -8/Materials | Identified exit to Garrison 2104 | -8/Materials | Entered Garrison 2178 | -8/Garrison | Triggered checkpoint 2290 | -8/Garrison | Garrison Relay disabled 2341 | -8/Garrison | Triggered checkpoint 2513 | -8/Garrison | Discovered new exit (range 10) 2518 | -8/Garrison | Identified exit to Materials 2996 | -8/Garrison | Garrison Relay disabled 3326 | -8/Garrison | Entered Materials 3399 | -8/Materials | Discovered new exit (range 16) 3421 | -8/Materials | Identified exit to Storage 3422 | -8/Materials | Entered Storage 3478 | -8/Storage | Assisted by bots powering up and referring to "LRC-V3" 3780 | -8/Storage | Build established: Commander-Sprinter 4193 | -8/Storage | Discovered new exit (range 16) 4198 | -8/Storage | Identified exit to Factory 4242 | -8/Storage | Entered Factory 4242 | -7/Factory | Evolved 2 slots: Utility x2 4372 | -7/Factory | Discovered new exit (range 6) 4373 | -7/Factory | Identified exit to Factory 4422 | -7/Factory | Discovered new exit (range 15) 4426 | -7/Factory | Identified exit to Lower Caves 4521 | -7/Factory | Discovered exit to Factory (range 13) 4551 | -7/Factory | Build established: Sprinter 4576 | -7/Factory | Sucked down chute 4576 | -7/Factory | Entered Waste 4576 | -7/Waste | The area was eerily silent 4622 | -7/Waste | Discovered new exit (range 16) 4648 | -7/Waste | Identified exit to Factory 4649 | -7/Waste | Entered Factory 4759 | -7/Factory | Discovered exit to Factory (range 7) 5018 | -7/Factory | Discovered exit to Factory (range 15) 5102 | -7/Factory | Build established: Hacker-Sprinter 5699 | -7/Factory | Build established: Trapper-Sprinter 5804 | -7/Factory | Cargo convoy interrupted 6007 | -7/Factory | Entered Lower Caves 6013 | -7/Lower Caves | Met a Warlord Commander 6014 | -7/Lower Caves | Learned location of Warlord (-4) 6015 | -7/Lower Caves | Warlord Commander delivered Encrypted Comm Array 6074 | -7/Lower Caves | Spotted B-75 Beast 6083 | -7/Lower Caves | Encountered a Warlord checkpoint 6182 | -7/Lower Caves | Build established: Hacker-Sprinter 6238 | -7/Lower Caves | Discovered new exit (range 10) 6241 | -7/Lower Caves | Identified exit to Lower Caves 6241 | -7/Lower Caves | Entered another Lower Caves area 6242 | -7/Lower Caves | Discovered exit to Factory (range 8) 6306 | -7/Lower Caves | Learned location of 1 exit from Factory 6385 | -7/Lower Caves | Discovered new exit (range 16) 6393 | -7/Lower Caves | Encountered a Warlord checkpoint 6394 | -7/Lower Caves | Identified exit to Data Miner 6403 | -7/Lower Caves | Entered Data Miner 6403 | -7/Data Miner | Discovered new exit (range 6) 6408 | -7/Data Miner | Met Data Miner 6415 | -7/Data Miner | Learned location of Section 7 (-2) 6415 | -7/Data Miner | Acquired the access code to Warlord's prototype stash 6419 | -7/Data Miner | Received God Mode back door access code from Data Miner 6426 | -7/Data Miner | Identified exit to Proximity Caves 6427 | -7/Data Miner | Entered Proximity Caves 6492 | -6/Proximity Caves | Spotted B-75 Beast 6528 | -6/Proximity Caves | Discovered exit to Factory (range 11) 6590 | -6/Proximity Caves | Entered Factory 6590 | -6/Factory | Evolved 2 slots: Propulsion x1, Utility x1 6591 | -6/Factory | Identified exit to Factory 6900 | -6/Factory | Repaired Cld. Cesium-ion Thruster 6965 | -6/Factory | Discovered new exit (range 16) 7064 | -6/Factory | Watched by a mysterious "MATRIX" hacker. 7104 | -6/Factory | Repaired Broken Vibroblade? 7116 | -6/Factory | Discovered exit to Factory (range 12) 7349 | -6/Factory | Discovered new exit (range 5) 7533 | -6/Factory | Fabricated Cld. Cesium-ion Thruster? 7771 | -6/Factory | Identified exit to Lower Caves 8060 | -6/Factory | Fabricated Exp. Propulsion Shielding? 8062 | -6/Factory | Build established: Trapper-Sprinter 8452 | -6/Factory | Repaired Mak. Power Source? 8506 | -6/Factory | Repaired ECM Suite? 8548 | -6/Factory | Repaired Cld. Cesium-ion Thruster? 8685 | -6/Factory | Fabricated Cld. Cesium-ion Thruster (x1) 8797 | -6/Factory | Spotted B-75 Beast 10877 | -6/Factory | Repaired Vibroblade 10916 | -6/Factory | Repaired Imp. Light Armor Plating 10973 | -6/Factory | Repaired Hyp. Gauss Cannon+ 11027 | -6/Factory | Manually triggered Chute Trap 11027 | -6/Factory | Sucked down chute 11027 | -6/Factory | Entered Waste 11028 | -6/Waste | Met a frightened Derelict 11028 | -6/Waste | Spotted C-40 Crusher 11030 | -6/Waste | Spotted C-40 Crusher 11031 | -6/Waste | Spotted C-40 Crusher 11032 | -6/Waste | Spotted C-40 Crusher 11038 | -6/Waste | Spotted C-40 Crusher 11040 | -6/Waste | Spotted C-40 Crusher 11042 | -6/Waste | Discovered new exit (range 13) 11052 | -6/Waste | Destroyed C-40 Crusher 11066 | -6/Waste | Destroyed C-40 Crusher 11074 | -6/Waste | Destroyed C-40 Crusher 11100 | -6/Waste | Destroyed C-40 Crusher 11105 | -6/Waste | Destroyed C-40 Crusher 11175 | -6/Waste | Destroyed C-40 Crusher 11204 | -6/Waste | Warlord forces began an assault 11374 | -6/Waste | Entered Factory 11429 | -6/Factory | Discovered exit to Lower Caves (range 15) 11558 | -6/Factory | Discovered exit to Factory (range 15) 12112 | -6/Factory | Unchained authorized (QV-33N) 12204 | -6/Factory | Spotted B-75 Beast 12263 | -6/Factory | Lost 7 parts (1p3n1u2w) 12311 | -6/Factory | Core integrity fell below 50% 12314 | -6/Factory | Self-destructed Last Messages --------------- 1 m4Y n07 8e 7h3 0R4Cl3 (7Ha 1 1Z 4 5ub5ErVIeN7 Idi07), 8U7 1 S33 a lo7 oF r04D8L0x 1n UR n0T-7Oo-D15t4NT Phu7urE 1F U k33P 7h1S uP. 12248_ Acquired Authchip [Propulsion]. 12251_ U-05 Engineer lays Concrete. 12252_ U-05 Engineer builds a Wall. 12270_ Destroyed Imp. Hover Unit. 12275_ Destroyed Lgt. Deuterium Engine. 12293_ Acquired Nuclear Pulse Thruster. 12302_ P-60 Hacker Remote Datajack severed. 12307_ Destroyed Gravmag System. 12310_ Nuclear Reactor explodes. 12310_ Lgt. Deuterium Engine destroyed. 12310_ Nuclear Reactor explodes. 12310_ P-60 Hacker destroyed. 12310_ Nuclear Reactor explodes. 12310_ Cld. Cesium-ion Thruster destroyed. 12310_ U-05 Engineer destroyed. 12310_ Cld. Cesium-ion Thruster destroyed. 12310_ ECM Suite destroyed. Map ----- +----------------------------------------------------+ | ???????# #?# # #? """"?# | | ???????#! ! """ #?# # ########??""""?# | | ???????# """ #?# # #????????? ??# | | ???????# """ #?# # #????????? ??# | | ???????#! ! #?# + #????????? ???# | | ???????# """ #?# # #????????###???# | | #####??# G" #?########### ##########?????# | | ??#! """ #???????????# # #?????# | | ?# #???????????# # "" """ #?????# | | ?#+##/################# # "" """ #?????? | | # # "" """ #?????? | | # + S= #?????? | | + # "" ==*#?????? | | # # "" =* #?????? | | # # "" * #?????? | | ?##### ############+######### #?????? | | ?????# #?????# #?##########?????? | | ??????# #?????# ###??????????????? | | ??????# #?????# #??????????????? | | ####???????# #?????# ! #??????????????? | | ???????????# #?????# #??????????????? | | ???????????# #?????# ! ##?????????????? | | ???????????# #?????# #?????????????? | | ??????????## ##????# #??????????????? | | ??????????# #????# #??????????????? | | ########### " #????# @ w #??????????????? | | #????# #??????????????? | | ############ ##????# ###??????????????? | | ########## #?????# #????????????????? | | ?# ## ######## ???????????????? | | ?# # g # """ """ "?????????????? | | ??# + gg # """ """ ""????????????? | | #??# # "" # ] """ """ ""????????????? | | ##?# # T" # ???????????????? | | #?# !# "" #] ""? """???????????????? | | #?######## """" # "???""????????????????? | | #????????# """" # "?????????????????????? | | #????????# """" # ?????????????????????? | | #????????# """" ####+?##??????????????????? | | ########### """" #???? ??????????????????? | | ??# """" #### ?????????????????? | | #?# """" ?????????????????? | | ### ?????????????????? | | ????????????????? | | ############### ????????????????? | | ############### ???????????????? | | # ???????????????? | | + ???????????????? | | """ "" ! """" # ### ???????????????? | | """ "" """" + #??? ? ???????????????? | +----------------------------------------------------+ Best States ------------- Heat Dissipation 37 Energy Generation 19 Energy Capacity 250 Matter Stores 300 Matter Capacity 300 Sight Range 20 Terrain Scan Density 10 ECM Strength 1 Additional Mass Support 6 Armor Coverage 300 Propulsion Shielding 66 Evasion (%) 65 Melee Accuracy 8 Recoil Reduction 3 Offensive Hacking 20 Defensive Hacking 14 Authchip Count 1 Trap Extractor Capacity 8 Item Schematics ----------------- Combat Drone Bay | -7/Data Miner | Free Lgt. Regenerative Plating | -7/Data Miner | Free Multireflex Exoskeleton | -7/Data Miner | Free Gravity Neutralizer | -7/Data Miner | Free Com. Ion Cannon | -7/Data Miner | Free Arm. Medium Treads | -7/Data Miner | Free Adv. Drone Bay | -7/Data Miner | Free Variable Charge Gun | -7/Data Miner | Free Force Field | -7/Data Miner | Free Imp. Remote Datajack | -7/Data Miner | Free Vibroblade | -6/Factory | Scanalyzed Cld. Cesium-ion Thruster | -6/Factory | Scanalyzed Exp. Propulsion Shielding | -6/Factory | Hacked Robot Schematics ------------------ G-47 Trooper | -7/Data Miner | Free I-36 Angel | -7/Data Miner | Free R-10 Processor | -7/Data Miner | Free Y-54 Guardian | -7/Data Miner | Free Fabricated ------------ Cld. Cesium-ion Thruster | x1 | -6/Factory | Authchip Exp. Propulsion Shielding | x1 | -6/Factory | Authchip Cld. Cesium-ion Thruster | x1 | -6/Factory Repaired ---------- VTOL Module | 8% | -8/Materials Cld. Cesium-ion Thruster | 13% | -6/Factory Vibroblade | 99% | -6/Factory | Broken Mak. Power Source | 22% | -6/Factory ECM Suite | 55% | -6/Factory Cld. Cesium-ion Thruster | 73% | -6/Factory Vibroblade | 72% | -6/Factory Imp. Light Armor Plating | 40% | -6/Factory Hyp. Gauss Cannon | 72% | -6/Factory Studied --------- VTOL Module | -8/Materials | Hacked Lgt. Ion Engine | -8/Materials | Hacked Cesium-ion Thruster | -8/Materials | Hacked Flight Unit | -8/Materials | Hacked Katana | -8/Materials | Hacked Missile Launcher | -8/Materials | Hacked Lgt. Nuclear Core | -7/Factory | Hacked Imp. Datajack | -7/Factory | Hacked Hyp. Gauss Cannon | -6/Factory | Hacked Lrn. Missile Launcher | -6/Factory | Hacked Alien Tech Used ----------------- None Achievements -------------- None Challenges ------------ None Game ------ Seed QuantumGravityDiverter Manual? 0 Play Time 03:04:38 Cumulative 441.9 hours Start 2026.02.25 @ 12:18:54 End 2026.02.25 @ 19:44:25 Sessions 3 Manual Loads 0 Difficulty Rogue Special Mode None Game No. 287 Rogue 287 Adventurer 0 Explorer 0 Win Type - Total 29 Types 10/0/9/1/1/0/3/2/2/1 Lore% 84 Gallery% 78 Achievement% 72 Wizard Run 0 Options --------- Layout 1 ASCII 0 Keyboard 0 Movement Mouse Keybinds 0 Fullscreen 2 Font 24/Smallcaps Map View 50x35 Zoom Use 0% Tactical HUD 1 Map Filters NONE Filters NONE Steam 1 RUN: 0e1e0768-82f6-4a67-9174-9b1f4591d287